bitfinex-derivatives/quotes_SOLF0:USTF0_20250416
["timestamp","ask_amount","ask_price","bid_price","bid_amount"]
[1744795536483,7.9955,125.08,125.07,4.16792016]
[1744795537592,7.9955,125.08,125.07,4.16695894]
[1744795537783,7.9955,125.08,125.07,0.05259478]
[1744795539385,7.9977,125.05,124.99,31.18]
[1744795539585,7.9977,125.05,125.0,4.11357402]
[1744795539786,7.9977,125.05,125.01,4.11357402]
[1744795540082,7.9977,125.05,125.02,4.11357402]
[1744795540279,7.9977,125.05,125.03,4.11357402]
[1744795540480,7.9977,125.05,125.01,7.9996]
[1744795540683,8.05762929,125.05,125.02,4.11095552]
[1744795540880,8.05762929,125.05,125.03,4.11095552]
[1744795541087,8.05762929,125.05,125.01,7.9996]
[1744795541279,0.05992929,125.05,124.95,2.0832]
[1744795541487,2.0996,125.04,124.96,3.89065141]
[1744795541691,0.05569881,125.01,124.97,3.89065141]
[1744795541890,0.05569881,125.01,124.98,3.89065141]
[1744795542086,0.05569881,125.01,124.99,3.89065141]
[1744795542390,8.0008,125.0,124.97,8.0023]
[1744795542590,8.0008,125.0,124.98,3.51574775]
[1744795542791,8.0008,125.0,124.97,8.0023]
[1744795545691,8.0008,125.0,124.98,3.26957978]
[1744795545895,8.0008,125.0,124.97,8.0023]
[1744795546092,8.0008,125.0,124.98,3.2696154]
[1744795546292,8.0008,125.0,124.97,8.0023]
[1744795546493,8.0008,125.0,124.98,3.26970336]
[1744795546695,8.0008,125.0,124.96,8.0028]
[1744795546894,8.0008,125.0,124.97,3.26949167]
[1744795547093,8.0008,125.0,124.98,3.26949167]
[1744795547291,8.0008,125.0,124.97,8.0024]
[1744795547493,8.0008,125.0,124.98,3.26952569]
[1744795547790,8.0008,125.0,124.97,8.0024]
[1744795547994,8.0008,125.0,124.98,3.26937716]
[1744795548192,8.0008,125.0,124.97,8.0024]
[1744795548498,8.0008,125.0,124.96,8.0028]
[1744795548794,8.0008,125.0,124.97,3.2689821]
[1744795548996,8.0008,125.0,124.96,8.0028]
[1744795549198,8.0008,125.0,124.97,3.26882412]
[1744795549398,8.0008,125.0,124.96,8.0028]
[1744795549697,8.0008,125.0,124.97,3.26936535]
[1744795549897,8.0008,125.0,124.96,8.0028]
[1744795550197,8.0008,125.0,124.97,11.27204782]
[1744795550396,8.0008,125.0,124.97,8.0025]
[1744795550999,0.05569881,125.01,124.98,3.26851787]
[1744795551198,31.16,125.06,124.99,3.26707661]
[1744795551397,31.16,125.06,124.98,2.1166]
[1744795551600,7.9977,125.05,125.01,7.9996]
[1744795552299,0.05707751,125.04,125.02,8.05357799]
[1744795552498,0.05707751,125.04,125.02,0.05427799]
[1744795552896,0.05707751,125.04,125.02,8.05357799]
[1744795553200,0.05707751,125.04,125.02,0.05427799]
[1744795553396,0.05707751,125.04,125.03,7.9987]
[1744795553791,9.38655568,125.1,125.02,0.05427799]
[1744795554098,575.94,125.11,125.03,34.42154162]
[1744795554298,575.94,125.11,125.04,3.26154162]
[1744795554593,17.13808867,125.1,125.03,31.16]
[1744795554794,31.16,125.09,125.03,31.16]
[1744795554991,7.9966,125.07,125.05,0.05402489]
[1744795555905,0.05850896,125.08,125.05,0.05402489]
[1744795556304,0.05850896,125.08,125.05,8.05112489]
[1744795557105,8.05430896,125.08,125.05,8.05112489]
[1744795558604,7.9962,125.07,125.05,0.05402489]
[1744795561207,7.9968,125.06,125.05,0.05402489]
[1744795561608,0.05850896,125.08,125.05,0.05402489]
[1744795562212,8.05430896,125.08,125.05,8.05112489]
[1744795562907,0.05850896,125.08,125.05,8.05112489]
[1744795563710,8.05420896,125.08,125.05,8.05112489]
[1744795564715,0.05850896,125.08,125.05,8.05112489]
[1744795565212,8.05450896,125.08,125.05,8.05112489]
[1744795565514,0.05850896,125.08,125.05,0.05402489]
[1744795565915,0.05850896,125.08,125.05,8.05112489]
[1744795566114,0.05850896,125.08,125.05,0.05402489]
[1744795566613,0.05850896,125.08,125.06,7.9967]
[1744795567211,1.39169383,125.13,125.05,10.76532587]
[1744795567412,31.16,125.14,125.07,10.71130098]
[1744795567711,31.16,125.14,125.08,3.2654737]
[1744795567913,31.16,125.14,125.07,41.87130098]
[1744795568114,31.16,125.14,125.09,7.9945]
[1744795568309,31.16,125.14,125.07,31.16]
[1744795568612,10.76477375,125.13,125.1,0.058311]
[1744795568814,7.9936,125.11,125.1,0.058311]
[1744795569015,39.1536,125.11,125.1,0.058311]
[1744795569716,31.16,125.11,125.1,0.058311]
[1744795569916,0.0599673,125.13,125.1,0.058311]
[1744795570407,7.9933,125.12,125.1,0.058311]
[1744795570609,0.0599673,125.13,125.1,0.058311]
[1744795570817,10.71130098,125.12,125.1,0.058311]
[1744795571014,7.9936,125.11,125.1,0.058311]
[1744795571214,31.12,125.11,125.02,2.097]
[1744795571413,7.9965,125.07,125.03,3.26345955]
[1744795571614,7.9965,125.07,125.02,2.097]
[1744795571813,7.9965,125.07,125.03,3.26383986]
[1744795572013,7.9965,125.07,125.04,7.9977]
[1744795572316,8.05339746,125.07,125.04,8.05095253]
[1744795572518,7.997,125.06,125.04,0.05325253]
[1744795575918,8.05329746,125.07,125.04,8.05115253]
[1744795576616,0.05689746,125.07,125.04,0.05325253]
[1744795576916,7.9968,125.06,125.04,0.05325253]
[1744795578219,0.05689746,125.07,125.04,0.05325253]
[1744795578815,8.05339746,125.07,125.04,8.05095253]
[1744795579022,0.05689746,125.07,125.04,8.05095253]
[1744795579322,8.05329746,125.07,125.05,7.9974]
[1744795579524,8.05329746,125.07,125.04,0.05325253]
[1744795579725,0.05689746,125.07,125.04,0.05325253]
[1744795580323,7.9968,125.06,125.04,0.05325253]
[1744795582223,0.05689746,125.07,125.04,0.05325253]
[1744795583229,7.9972,125.06,125.04,0.05325253]
[1744795585429,8.05329746,125.07,125.04,8.05095253]
[1744795585635,0.05689746,125.07,125.04,8.05095253]
[1744795585925,0.05689746,125.07,125.04,0.05325253]
[1744795586529,7.9971,125.06,125.04,0.05325253]
[1744795586829,7.9971,125.06,125.04,8.05125253]
[1744795587131,8.05329746,125.07,125.04,0.05325253]
[1744795587327,0.05689746,125.07,125.05,3.27941294]
[1744795587532,0.05689746,125.07,125.04,0.05325253]
[1744795587533,0.05689746,125.07,125.06,3.27941294]
[1744795588134,0.05689746,125.07,125.06,7.9968]
[1744795588336,0.05689746,125.07,125.06,11.27577155]
[1744795590536,1.39177732,125.14,125.06,11.27897155]
[1744795590736,2.192,125.18,125.07,55.7768267]
[1744795590929,7.9907,125.16,125.12,7.9924]
[1744795591235,2.192,125.18,125.08,33.3181]
[1744795591437,2.192,125.18,125.09,3.27585652]
[1744795591736,0.05601559,125.15,125.12,0.05496166]
[1744795591936,0.05601559,125.15,125.13,3.27495576]
[1744795592539,0.05601559,125.15,125.13,11.26685576]
[1744795592739,0.05601559,125.15,125.12,0.05496166]
[1744795592940,0.05601559,125.15,125.13,3.27453096]
[1744795593136,0.05601559,125.15,125.13,7.9917]
[1744795593335,0.05601559,125.15,125.12,0.05496166]
[1744795593637,0.05601559,125.15,125.13,11.26547375]
[1744795593837,0.05601559,125.15,125.13,7.992]
[1744795594641,0.05601559,125.15,125.14,7.9916]
[1744795594844,31.12,125.2,125.14,3.27345955]
[1744795595047,31.12,125.2,125.15,3.27345955]
[1744795595237,39.1082,125.2,125.16,7.99]
[1744795596042,0.05832179,125.19,125.17,0.05691437]
[1744795596344,0.05832179,125.19,125.17,8.04661437]
[1744795596643,0.05832179,125.19,125.17,0.05691437]
[1744795596839,2.179e-05,125.19,125.18,7.9891]
[1744795597041,2.179e-05,125.19,125.18,21.95074231]
[1744795597239,2.179e-05,125.19,125.18,21.94388477]
[1744795597641,2.179e-05,125.19,125.18,11.25256802]
[1744795598946,2.179e-05,125.19,125.18,3.26346802]
[1744795599147,2.179e-05,125.19,125.17,8.04641437]
[1744795599847,2.179e-05,125.19,125.17,0.05691437]
[1744795601350,2.179e-05,125.19,125.17,8.04661437]
[1744795601555,2.179e-05,125.19,125.17,0.05691437]
[1744795601849,2.179e-05,125.19,125.18,3.25640355]
[1744795602051,2.179e-05,125.19,125.18,11.24550355]
[1744795602656,2.179e-05,125.19,125.18,7.9891]
[1744795602857,2.179e-05,125.19,125.18,11.2442621]
[1744795603855,10.073,125.26,125.22,7.9861]
[1744795604262,7.985,125.25,125.18,15.01471675]
[1744795604457,7.985,125.25,125.21,7.987]
[1744795604661,41.77131675,125.24,125.15,33.1075]
[1744795604863,41.77131675,125.24,125.17,7.9895]
[1744795605162,41.77131675,125.24,125.15,33.1075]
[1744795605163,0.05665468,125.21,125.18,0.0584977]
[1744795605764,31.13665468,125.21,125.18,0.0584977]
[1744795607163,7.9882,125.2,125.18,0.0584977]
[1744795610364,39.12415468,125.21,125.18,0.0584977]
[1744795611367,39.12415468,125.21,125.18,8.0472977]
[1744795612566,7.9879,125.2,125.18,0.0584977]
[1744795612766,31.13665468,125.21,125.18,0.0584977]
[1744795613068,7.9879,125.2,125.18,0.0584977]
[1744795613269,31.13665468,125.21,125.18,0.0584977]
[1744795614969,7.9881,125.2,125.18,0.0584977]
[1744795616261,8.04415468,125.21,125.18,0.0584977]
[1744795616568,8.04415468,125.21,125.18,8.0472977]
[1744795616770,0.05665468,125.21,125.18,8.0472977]
[1744795616962,0.05665468,125.21,125.18,0.0584977]
[1744795617166,7.9878,125.2,125.18,0.0584977]
[1744795617766,7.9884,125.19,125.18,0.0584977]
[1744795617969,7.9884,125.19,125.18,0.00160024]
[1744795620168,14.93501675,125.2,125.12,31.08]
[1744795620473,10.69131675,125.18,125.12,31.08]
[1744795620665,41.77131675,125.18,125.12,31.08]
[1744795620871,7.9907,125.16,125.13,7.9919]
[1744795621267,7.9907,125.16,125.13,8.05298351]
[1744795621474,0.06107192,125.16,125.13,0.06108351]
[1744795622580,0.06107192,125.16,125.14,3.25261733]
[1744795622779,0.06107192,125.16,125.13,0.06108351]
[1744795622976,0.06107192,125.16,125.14,3.25261733]
[1744795623177,0.06107192,125.16,125.13,0.06108351]
[1744795623378,0.06107192,125.16,125.15,7.991]
[1744795627186,0.06107192,125.16,125.13,0.06108351]
[1744795627886,8.05177192,125.16,125.13,8.05308351]
[1744795631085,8.05177192,125.16,125.14,3.27223962]
[1744795631284,0.06107192,125.16,125.13,0.06108351]
[1744795631489,0.06107192,125.16,125.14,3.27247724]
[1744795631686,0.06107192,125.16,125.15,3.27247724]
[1744795632186,0.06107192,125.16,125.15,11.26347724]
[1744795633087,0.06107192,125.16,125.15,3.27624087]
[1744795633580,10.75238867,125.16,125.13,0.06108351]
[1744795633785,10.69131675,125.14,125.07,31.06]
[1744795633983,7.9939,125.11,125.08,11.27495051]
[1744795634281,7.9939,125.11,125.09,3.27975051]
[1744795634489,7.9939,125.11,125.1,3.27975051]
[1744795634681,7.9939,125.11,125.08,3.27975051]
[1744795634981,0.05899464,125.11,125.09,3.27975051]
[1744795635187,0.05899464,125.11,125.1,3.27975051]
[1744795635379,0.05899464,125.11,125.1,11.27385051]
[1744795635584,2.1311,125.17,125.1,34.33975051]
[1744795635784,10.69131675,125.18,125.11,3.27975051]
[1744795635987,7.9901,125.17,125.13,7.9918]
[1744795636183,7.9901,125.17,125.1,35.3743]
[1744795636381,33.2381,125.19,125.11,13.97342556]
[1744795636586,41.75131675,125.22,125.13,10.69131675]
[1744795636882,39.0468,125.22,125.19,7.9881]
[1744795637186,31.06,125.22,125.19,7.9881]
[1744795637389,7.9859,125.23,125.2,11.26844805]
[1744795637580,7.9859,125.23,125.16,31.06]
[1744795637787,31.06,125.25,125.17,3.28088704]
[1744795637987,0.05909456,125.21,125.18,3.33752986]
[1744795638186,0.05909456,125.21,125.19,3.28088704]
[1744795638386,0.05909456,125.21,125.2,3.28088704]
[1744795638589,0.05909456,125.21,125.2,3.28111093]
[1744795639791,0.05909456,125.21,125.2,11.26891093]
[1744795640287,0.05909456,125.21,125.2,3.28111093]
[1744795640996,8.04629456,125.21,125.2,3.28111093]
[1744795641195,0.05909456,125.21,125.18,0.05664282]
[1744795641383,0.05909456,125.21,125.19,3.2817399]
[1744795641587,7.9883,125.2,125.18,0.05664282]
[1744795641884,7.9883,125.2,125.19,3.28174107]
[1744795642085,0.05909456,125.21,125.19,3.28238539]
[1744795642383,0.05909456,125.21,125.18,0.05664282]
[1744795642384,2.06799456,125.21,125.18,0.05664282]
[1744795643391,0.05909456,125.21,125.18,0.05664282]
[1744795643690,0.05909456,125.21,125.19,3.28289923]
[1744795643891,0.05909456,125.21,125.2,3.28272491]
[1744795644290,0.05909456,125.21,125.18,0.05664282]
[1744795644494,0.05909456,125.21,125.19,3.28283949]
[1744795644692,0.05909456,125.21,125.2,3.28283949]
[1744795644994,0.05909456,125.21,125.2,11.27063949]
[1744795645190,0.05909456,125.21,125.2,3.28283949]
[1744795645398,0.05909456,125.21,125.18,0.05664282]
[1744795645694,7.9884,125.19,125.18,0.05664282]
[1744795645893,7.9884,125.19,125.18,3.33956478]
[1744795647700,7.9884,125.19,125.18,3.33978845]
[1744795647997,7.9881,125.2,125.18,3.33978845]
[1744795648197,7.9881,125.2,125.18,0.05664282]
[1744795648703,0.05909456,125.21,125.19,3.28378946]
[1744795648895,0.05909456,125.21,125.18,0.05664282]
[1744795649089,0.05909456,125.21,125.19,3.28372685]
[1744795649290,0.05909456,125.21,125.18,0.05664282]
[1744795649499,0.05909456,125.21,125.19,3.28484234]
[1744795649701,0.05909456,125.21,125.18,0.05664282]
[1744795650001,7.9878,125.2,125.19,3.28483864]
[1744795650399,0.05909456,125.21,125.19,3.28483864]
[1744795650699,0.05909456,125.21,125.18,0.05664282]
[1744795650700,0.05909456,125.21,125.2,3.28480402]
[1744795651292,33.2684,125.26,125.2,3.28381221]
[1744795651499,31.06,125.26,125.21,3.28381221]
[1744795651795,7.9859,125.23,125.22,3.28381221]
[1744795652600,7.9865,125.22,125.21,0.05216624]
[1744795652794,7.9865,125.22,125.21,3.33537412]
[1744795653201,7.9865,125.22,125.21,3.33518441]
[1744795659304,7.9865,125.22,125.21,0.05216624]
[1744795659504,7.9883,125.2,125.17,7.9894]
[1744795659703,7.9883,125.2,125.18,3.28150796]
[1744795659901,7.9883,125.2,125.19,3.28150796]
[1744795660096,31.04,125.23,125.19,3.28150796]
[1744795660301,31.04,125.23,125.2,3.28150796]
[1744795660503,31.04,125.23,125.16,31.04]
[1744795660697,7.9868,125.22,125.2,0.05981963]
[1744795661707,39.0818371,125.23,125.2,8.04751963]
[1744795662011,31.0956371,125.23,125.2,8.04751963]
[1744795662204,31.0956371,125.23,125.21,3.28110772]
[1744795662403,31.0956371,125.23,125.2,8.04751963]
[1744795662604,31.0956371,125.23,125.21,3.28088653]
[1744795662806,31.0956371,125.23,125.2,8.04751963]
[1744795663108,7.9866,125.22,125.21,3.28087462]
[1744795664106,31.0956371,125.23,125.21,3.28087462]
[1744795664107,39.0818371,125.23,125.21,3.28087462]
[1744795664311,39.0818371,125.23,125.2,8.04751963]
[1744795664514,39.0818371,125.23,125.21,3.28033537]
[1744795664811,39.0818371,125.23,125.2,8.04751963]
[1744795665013,8.0418371,125.23,125.21,3.28033537]
[1744795665208,8.0418371,125.23,125.2,8.04751963]
[1744795665408,8.0418371,125.23,125.21,3.28018404]
[1744795665609,8.0418371,125.23,125.2,8.04751963]
[1744795665810,8.0418371,125.23,125.21,3.28018404]
[1744795666110,8.0418371,125.23,125.21,7.9871]
[1744795666913,8.0418371,125.23,125.2,8.04731963]
[1744795667115,8.0418371,125.23,125.21,3.27990252]
[1744795667310,8.0418371,125.23,125.2,8.04731963]
[1744795667509,8.0418371,125.23,125.21,3.27961394]
[1744795667810,8.0418371,125.23,125.2,8.04731963]
[1744795668010,7.9865,125.22,125.21,3.27961394]
[1744795669019,0.0556371,125.23,125.2,0.05981963]
[1744795669619,7.9865,125.22,125.2,0.05981963]
[1744795669819,0.0556371,125.23,125.2,0.05981963]
[1744795670022,7.9869,125.22,125.2,0.05981963]
[1744795671320,0.0556371,125.23,125.2,0.05981963]
[1744795672516,8.0418371,125.23,125.21,3.2791367]
[1744795672717,8.0418371,125.23,125.2,8.04711963]
[1744795673019,0.0556371,125.23,125.21,3.27910293]
[1744795673221,0.0556371,125.23,125.22,11.2655411]
[1744795673422,0.0556371,125.23,125.22,3.2790411]
[1744795673622,8.0415371,125.23,125.22,3.2790411]
[1744795674622,7.9872,125.21,125.2,0.05981963]
[1744795674922,7.9872,125.21,125.2,3.33946249]
[1744795675231,7.9868,125.22,125.2,3.33985024]
[1744795675419,7.9868,125.22,125.21,3.28003061]
[1744795678823,7.9868,125.22,125.21,3.28168921]
[1744795680627,0.0556371,125.23,125.21,3.28942274]
[1744795680825,0.0556371,125.23,125.22,3.28942274]
[1744795681725,8.0415371,125.23,125.22,3.28942274]
[1744795681923,0.0556371,125.23,125.22,3.29241756]
[1744795682428,8.0415371,125.23,125.22,3.29241756]
[1744795682626,10.68612919,125.21,125.15,2.1802]
[1744795683324,43.83362919,125.23,125.15,2.1802]
[1744795683523,7.9883,125.2,125.17,7.9894]
[1744795683723,8.04325648,125.2,125.18,0.06142014]
[1744795684124,0.05495648,125.2,125.18,8.05002014]
[1744795684628,0.05495648,125.2,125.18,0.06142014]
[1744795685129,0.05495648,125.2,125.19,7.9884]
[1744795686030,7.9868,125.22,125.2,7.9876]
[1744795686419,7.9872,125.21,125.18,0.06142014]
[1744795686727,41.70612919,125.23,125.19,7.9882]
[1744795687029,7.9869,125.22,125.18,0.06142014]
[1744795687229,8.04668223,125.22,125.18,0.06142014]
[1744795688029,8.04668223,125.22,125.19,7.988]
[1744795688423,8.04668223,125.22,125.2,7.9877]
[1744795688629,8.04668223,125.22,125.18,2.17272014]
[1744795689129,8.04668223,125.22,125.2,7.9877]
[1744795690029,8.04668223,125.22,125.19,7.9881]
[1744795691134,7.9873,125.21,125.19,7.9881]
[1744795691729,7.9873,125.21,125.18,8.05032014]
[1744795691926,10.68612919,125.21,125.18,0.06142014]
[1744795692430,7.9884,125.19,125.18,0.06142014]
[1744795694530,7.9884,125.19,125.18,3.2507577]
[1744795697232,7.9881,125.2,125.18,3.2507577]
[1744795697530,7.9881,125.2,125.19,3.18723164]
[1744795698333,7.9881,125.2,125.19,3.18719221]
[1744795699931,10.68612919,125.21,125.18,0.06142014]
[1744795700132,0.05978223,125.22,125.19,11.17497353]
[1744795700332,10.68612919,125.21,125.2,3.18645261]
[1744795700533,10.68612919,125.21,125.18,0.06142014]
[1744795700735,10.68612919,125.19,125.18,0.06142014]
[1744795701139,18.67452919,125.19,125.18,0.06142014]
[1744795705643,7.991,125.15,125.11,31.0]
[1744795705838,7.991,125.15,125.1,37.3015]
[1744795706043,10.68612919,125.16,125.13,7.9919]
[1744795706844,10.74738864,125.16,125.13,0.06091103]
[1744795707241,7.991,125.15,125.13,0.06091103]
[1744795707442,10.74738864,125.16,125.13,0.06091103]
[1744795708742,7.991,125.15,125.13,0.06091103]
[1744795709546,7.991,125.15,125.13,8.05321103]
[1744795709744,18.73808864,125.16,125.13,8.05321103]
[1744795710045,10.74738864,125.16,125.13,0.06091103]
[1744795710544,7.9915,125.15,125.13,0.06091103]
[1744795711647,7.9915,125.15,125.13,8.05301103]
[1744795713448,7.9915,125.15,125.13,0.06091103]
[1744795714247,7.9915,125.15,125.13,8.05311103]
[1744795714544,18.73788864,125.16,125.13,0.06091103]
[1744795714748,8.05175945,125.16,125.13,0.06091103]
[1744795715148,6.84639857,125.15,125.13,0.06091103]
[1744795715849,6.84639857,125.15,125.14,7.9915]
[1744795717548,6.90765802,125.16,125.14,7.9915]
[1744795719847,6.90765802,125.16,125.13,0.06091103]
[1744795720454,14.89805802,125.16,125.14,7.9916]
[1744795721551,6.90765802,125.16,125.13,0.06091103]
[1744795721745,6.84639857,125.14,125.1,31.0]
[1744795721948,6.84639857,125.13,125.11,7.9933]
[1744795722147,6.84639857,125.13,125.08,11.02649857]
[1744795722351,6.84639857,125.13,125.08,13.04159857]
[1744795722555,6.84639857,125.13,125.11,7.9932]
[1744795722952,6.8968128,125.13,125.11,8.05259197]
[1744795723249,7.9929,125.12,125.11,0.05939197]
[1744795723553,6.84639857,125.12,125.04,35.0273]
[1744795723855,6.84639857,125.09,125.04,37.1752]
[1744795724257,6.84639857,125.07,125.04,37.1752]
[1744795724555,6.90652812,125.07,125.04,35.21982594]
[1744795725255,10.77566009,125.07,125.04,0.05972594]
[1744795726559,18.77206009,125.07,125.04,0.05972594]
[1744795726959,18.77206009,125.07,125.04,8.05762594]
[1744795729660,0.06012955,125.07,125.04,0.05972594]
[1744795730658,0.06012955,125.07,125.06,7.9968]
[1744795732959,0.06012955,125.07,125.05,7.9973]
[1744795735262,0.06012955,125.07,125.04,0.05972594]
[1744795736763,10.77566009,125.07,125.04,0.05972594]
[1744795736961,10.71553054,125.05,125.04,0.05972594]
[1744795738165,18.71293054,125.05,125.04,0.05972594]
[1744795739065,10.71553054,125.05,125.04,0.05972594]
[1744795739266,38.997,125.06,125.04,0.05972594]
[1744795740268,7.9974,125.05,125.04,0.05972594]
[1744795740464,18.71293054,125.05,125.04,0.05972594]
[1744795740865,10.71553054,125.05,125.04,0.05972594]
[1744795741070,10.71553054,125.12,125.04,0.05972594]
[1744795741367,10.71553054,125.12,125.03,41.71553054]
[1744795741557,10.71553054,125.08,125.0,35.3356]
[1744795741958,18.71123054,125.08,125.05,7.9971]
[1744795742466,10.76635846,125.08,125.03,0.05975989]
[1744795742666,0.05082792,125.08,125.03,0.05975989]
[1744795742864,0.05082792,125.08,125.03,31.05975989]
[1744795743258,0.05082792,125.08,125.03,33.28405989]
[1744795744082,0.05082792,125.08,125.07,7.9961]
[1744795752872,0.05082792,125.08,125.06,0.05816948]
[1744795752873,31.0,125.11,125.09,7.9944]
[1744795753770,31.0,125.11,125.09,8.04686632]
[1744795754073,31.0611102,125.11,125.09,8.04686632]
[1744795754463,31.0611102,125.11,125.1,7.9942]
[1744795755570,31.0611102,125.11,125.09,8.04696632]
[1744795757175,6.85238134,125.1,125.09,8.04696632]
[1744795758468,31.0611102,125.11,125.1,7.9942]
[1744795758869,0.0611102,125.11,125.1,7.9942]
[1744795762480,0.0611102,125.11,125.09,8.04696632]
[1744795762976,14.84658134,125.1,125.09,0.05246632]
[1744795763278,6.85238134,125.1,125.01,613.35238134]
[1744795763472,6.85238134,125.07,125.03,9.07668134]
[1744795764180,6.85238134,125.09,125.04,0.05483801]
[1744795764380,0.05518756,125.06,125.04,0.05483801]
[1744795765076,0.05518756,125.06,125.05,14.84978134]
[1744795765286,45.80638134,125.11,125.05,37.81238134]
[1744795765982,45.80638134,125.11,125.09,7.9948]
[1744795766172,30.96,125.11,125.07,6.85238134]
[1744795766375,0.05596615,125.11,125.09,0.05842469]
[1744795766574,0.05596615,125.11,125.1,7.9942]
[1744795767882,0.05596615,125.11,125.09,0.05842469]
[1744795768479,8.04976615,125.11,125.09,0.05842469]
[1744795769290,8.04976615,125.11,125.09,8.05322469]
[1744795769584,0.05596615,125.11,125.09,8.05322469]
[1744795772189,0.05596615,125.11,125.1,7.9942]
[1744795779599,2.1662,125.16,125.1,7.9942]
[1744795779600,6.85238134,125.16,125.1,2.1837]
[1744795779785,6.85238134,125.16,125.11,37.81238134]
[1744795780193,6.85238134,125.16,125.14,7.9913]
[1744795780795,6.90434398,125.16,125.14,8.04251294]
[1744795781094,14.89474398,125.16,125.14,8.04251294]
[1744795781390,6.85238134,125.15,125.14,0.05121294]
[1744795781591,6.85238134,125.15,125.08,39.83408134]
[1744795781795,6.85238134,125.12,125.08,39.83408134]
[1744795781996,6.85238134,125.12,125.08,32.9817]
[1744795782392,14.84438134,125.14,125.11,7.9936]
[1744795782895,14.90537885,125.14,125.11,8.0521043]
[1744795787097,7.9923,125.13,125.11,8.0521043]
[1744795787598,0.06099751,125.14,125.13,7.9923]
[1744795789101,0.06099751,125.14,125.13,14.84468134]
[1744795789497,0.06099751,125.14,125.13,7.9923]
[1744795799008,45.76188134,125.18,125.12,6.85238134]
[1744795799707,45.76188134,125.18,125.15,7.9907]
[1744795800108,45.82034321,125.18,125.15,8.04770547]
[1744795800307,37.83084321,125.18,125.15,0.05700547]
[1744795800508,0.05846187,125.18,125.15,0.05700547]
[1744795801112,0.05846187,125.18,125.17,7.9897]
[1744795801612,0.05846187,125.18,125.15,0.05700547]
[1744795802110,6.91084321,125.18,125.15,0.05700547]
[1744795802318,6.85238134,125.16,125.15,0.05700547]
[1744795803617,14.84278134,125.16,125.15,0.05700547]
[1744795809823,6.85238134,125.16,125.09,6.85238134]
[1744795810318,1.5279,125.2,125.11,6.85238134]
[1744795810524,6.85238134,125.19,125.13,6.85238134]
[1744795810720,6.85238134,125.17,125.13,30.92]
[1744795810925,0.05705742,125.17,125.15,0.05853119]
[1744795811123,6.85238134,125.16,125.1,30.92]
[1744795811321,6.85238134,125.14,125.1,30.92]
[1744795811520,6.85238134,125.15,125.12,0.05742362]
[1744795811724,0.05071978,125.13,125.12,0.05742362]
[1744795812226,0.05071978,125.13,125.12,8.05032362]
[1744795812425,30.92,125.17,125.12,0.05742362]
[1744795812626,6.85238134,125.18,125.13,6.85238134]
[1744795813324,6.85238134,125.16,125.11,6.85238134]
[1744795813529,6.85238134,125.16,125.14,0.05113027]
[1744795813829,6.85238134,125.16,125.14,8.04243027]
[1744795814629,14.84288134,125.16,125.14,8.04243027]
[1744795814930,6.85238134,125.16,125.14,8.04243027]
[1744795815230,6.85238134,125.16,125.15,7.991]
[1744795817335,6.85238134,125.16,125.14,8.04243027]
[1744795817631,6.85238134,125.16,125.14,0.05113027]
[1744795817833,14.84318134,125.16,125.14,0.05113027]
[1744795818133,6.85238134,125.16,125.14,0.05113027]
[1744795818432,6.85238134,125.16,125.14,8.04243027]
[1744795819333,14.84278134,125.16,125.14,8.04243027]
[1744795819533,14.84278134,125.16,125.14,0.05113027]
[1744795819834,6.85238134,125.16,125.14,0.05113027]
[1744795820034,7.991,125.15,125.14,0.05113027]
[1744795820730,6.85238134,125.16,125.14,0.05113027]
[1744795821035,6.85238134,125.16,125.14,8.04243027]
[1744795822336,45.77900796,125.17,125.14,8.04243027]
[1744795822537,37.78900796,125.17,125.15,7.9907]
[1744795822734,37.78900796,125.17,125.14,0.05113027]
[1744795823037,0.05662662,125.17,125.14,0.05113027]
[1744795824036,0.05662662,125.17,125.16,7.9904]
[1744795824234,6.90900796,125.17,125.14,0.05113027]
[1744795824432,7.9906,125.16,125.14,8.04253027]
[1744795824631,6.90900796,125.17,125.14,8.04253027]
[1744795824835,6.90900796,125.17,125.14,0.05113027]
[1744795825332,14.89910796,125.17,125.14,0.05113027]
[1744795825935,7.9905,125.16,125.14,8.04243027]
[1744795826338,6.90900796,125.17,125.14,8.04243027]
[1744795826635,14.89900796,125.17,125.14,8.04243027]
[1744795827137,7.9904,125.16,125.14,8.04243027]
[1744795827342,6.85238134,125.15,125.14,0.05113027]
[1744795827638,6.85238134,125.15,125.05,37.73238134]
[1744795827639,7.9939,125.11,125.05,37.73238134]
[1744795827840,6.85238134,125.12,125.07,6.85238134]
[1744795828333,14.84568134,125.12,125.09,7.9945]
[1744795828638,14.90108194,125.12,125.09,8.05348083]
[1744795829739,14.84658134,125.1,125.09,0.05898083]